fUSD/lending_fUSD_20251201
["ID","MTS","AMOUNT","RATE_DAILY","PERIOD"]
[395217539,1764549047380,-195.12886218,0.00016437,2]
[395217540,1764549047390,-269.46949558,0.00016437,2]
[395217541,1764549047399,-15177.86,0.00016438,2]
[395217542,1764549047408,-171.18,0.00016438,2]
[395217543,1764549047419,-155.71,0.00016438,2]
[395217544,1764549047428,-150.0,0.00016439,2]
[395217545,1764549047437,-163.9,0.0001644,2]
[395217546,1764549047447,-163.9,0.0001644,2]
[395217547,1764549047455,-163.9,0.0001644,2]
[395217548,1764549047465,-637.66314152,0.00016452,2]
[395217549,1764549047474,-195.12886218,0.00016454,2]
[395217550,1764549047484,-269.46949558,0.00016454,2]
[395217551,1764549047493,-150.0,0.00016455,2]
[395217552,1764549047508,-150.0,0.00016457,2]
[395217553,1764549047517,-150.0,0.00016458,2]
[395217554,1764549047525,-150.0,0.00016459,2]
[395217555,1764549047536,-433.0,0.0001646,2]
[395217556,1764549047545,-150.0,0.00016462,2]
[395217557,1764549047554,-150.0,0.00016464,2]
[395217558,1764549047562,-150.0,0.00016464,2]
[395217559,1764549047572,-150.0,0.00016464,2]
[395217560,1764549047581,-195.12886218,0.00016472,2]
[395217561,1764549047591,-269.46949558,0.00016472,2]
[395217562,1764549047600,-150.0,0.00016477,2]
[395217563,1764549047609,-150.0,0.00016477,2]
[395217564,1764549047618,-150.0,0.00016479,2]
[395217565,1764549047630,-150.0,0.00016482,2]
[395217566,1764549047638,-150.0,0.00016487,2]
[395217567,1764549047647,-150.0,0.00016487,2]
[395217568,1764549047657,-195.12886218,0.00016489,2]
[395217569,1764549047666,-269.46949558,0.00016489,2]
[395217570,1764549047674,-150.0,0.00016496,2]
[395217571,1764549047683,-4792.06963947,0.00016496,2]
[395217572,1764549047692,-166.0,0.000165,2]
[395217573,1764549047701,-150.0,0.00016501,2]
[395217574,1764549047711,-150.0,0.00016501,2]
[395217575,1764549047721,-195.12886218,0.00016506,2]
[395217576,1764549047730,-269.46949558,0.00016506,2]
[395217577,1764549047739,-150.0,0.00016507,2]
[395217578,1764549047749,-322.33,0.00016507,2]
[395217579,1764549047760,-150.0,0.00016509,2]
[395217580,1764549047769,-150.0,0.00016512,2]
[395217581,1764549047778,-150.0,0.00016514,2]
[395217582,1764549047787,-150.0,0.00016518,2]
[395217583,1764549047799,-195.12886218,0.00016523,2]
[395217584,1764549047807,-150.0,0.00016523,2]
[395217585,1764549047817,-269.46949558,0.00016523,2]
[395217586,1764549047826,-600.0,0.00016528,2]
[395217587,1764549047836,-150.0,0.00016529,2]
[395217588,1764549047846,-33341.18057242,0.00016531,2]
[395217589,1764549047856,-150.0,0.00016533,2]
[395217590,1764549047865,-150.0,0.00016535,2]
[395217591,1764549047878,-150.0,0.00016537,2]
[395217592,1764549047888,-195.12886218,0.0001654,2]
[395217593,1764549047897,-269.46949558,0.0001654,2]
[395217594,1764549047908,-150.0,0.00016545,2]
[395217595,1764549047917,-150.0,0.00016551,2]
[395217596,1764549047927,-692.94,0.00016551,2]
[395217597,1764549047936,-500.0,0.00016551,2]
[395217598,1764549047945,-500.0,0.00016551,2]
[395217599,1764549047955,-500.0,0.00016551,2]
[395217600,1764549047964,-500.0,0.00016551,2]
[395217601,1764549047973,-500.0,0.00016551,2]
[395217602,1764549047982,-500.0,0.00016551,2]
[395217603,1764549047992,-500.0,0.00016551,2]
[395217604,1764549048002,-559.9560495,0.00016551,2]
[395217605,1764549048013,-35002.51994264,0.00016552,2]
[395217606,1764549048023,-566.0,0.00016552,2]
[395217607,1764549048032,-150.0,0.00016552,2]
[395217608,1764549048042,-195.12886218,0.00016557,2]
[395217609,1764549048051,-269.46949558,0.00016557,2]
[395217610,1764549048060,-150.0,0.00016562,2]
[395217611,1764549048070,-150.0,0.00016562,2]
[395217612,1764549048079,-150.0,0.00016567,2]
[395217613,1764549048088,-1070.00840535,0.00016568,2]
[395217614,1764549048099,-465.79970924,0.00016568,2]
[395217615,1764549048112,-150.0,0.00016571,2]
[395217616,1764549048124,-195.12886218,0.00016575,2]
[395217617,1764549048133,-269.46949558,0.00016575,2]
[395217618,1764549048142,-408.39205809,0.00016576,2]
[395217619,1764549048151,-150.0,0.00016576,2]
[395217620,1764549048160,-3727.0,0.00016583,2]
[395217621,1764549048170,-150.0,0.00016587,2]
[395217622,1764549048179,-150.0,0.00016587,2]
[395217623,1764549048188,-150.0,0.00016588,2]
[395217624,1764549048196,-150.0,0.00016589,2]
[395217625,1764549048206,-150.0,0.0001659,2]
[395217626,1764549048215,-246.37141229,0.00016591,2]
[395217627,1764549048225,-200.0,0.00016591,2]
[395217628,1764549048235,-195.12886218,0.00016592,2]
[395217629,1764549048251,-269.46949558,0.00016592,2]
[395217630,1764549048261,-151.0,0.00016593,2]
[395217631,1764549048270,-151.0,0.00016593,2]
[395217632,1764549048280,-150.0,0.00016594,2]
[395217633,1764549048289,-150.0,0.00016594,2]
[395217634,1764549048298,-150.0,0.00016594,2]
[395217635,1764549048308,-692.94,0.00016595,2]
[395217636,1764549048317,-692.94,0.00016595,2]
[395217637,1764549048326,-692.94,0.00016595,2]
[395217638,1764549048335,-500.0,0.00016595,2]
[395217639,1764549048344,-500.0,0.00016595,2]
[395217640,1764549048353,-500.0,0.00016595,2]
[395217641,1764549048362,-500.0,0.00016595,2]
[395217642,1764549048374,-500.0,0.00016595,2]
[395217643,1764549048383,-500.0,0.00016595,2]
[395217644,1764549048391,-500.0,0.00016595,2]
[395217645,1764549048400,-500.0,0.00016595,2]
[395217646,1764549048410,-500.0,0.00016595,2]
[395217647,1764549048419,-500.0,0.00016595,2]
[395217648,1764549048428,-500.0,0.00016595,2]
[395217649,1764549048437,-500.0,0.00016595,2]
[395217650,1764549048446,-500.0,0.00016595,2]
[395217651,1764549048455,-500.0,0.00016595,2]
[395217652,1764549048464,-640.32450595,0.00016595,2]
[395217653,1764549048474,-408.37859065,0.00016595,2]
[395217654,1764549048482,-500.0,0.00016595,2]
[395217655,1764549048496,-500.0,0.00016595,2]
[395217656,1764549048505,-500.0,0.00016595,2]
[395217657,1764549048514,-145868.6940646,0.00016596,2]
[395217658,1764549048526,-99939.5250426,0.00016596,2]
[395217659,1764549048535,-5840.7504504,0.00016596,2]
[395217660,1764549048545,-478428.6692525,0.00016596,2]
[395217661,1764549048554,-2777.8991665,0.00016596,2]
[395217662,1764549048563,-151.0,0.00016596,2]
[395217663,1764549048576,-151.0,0.00016596,2]
[395217664,1764549048585,-151.0,0.00016596,2]
[395217665,1764549048594,-3089.375043,0.00016596,2]
[395217666,1764549048603,-561.941987,0.00016596,2]
[395217667,1764549048612,-151.0,0.00016596,2]
[395217668,1764549048625,-561.941987,0.00016596,2]
[395217669,1764549048634,-151.0,0.00016596,2]
[395217670,1764549048643,-151.0,0.00016596,2]
[395217671,1764549048654,-151.0,0.00016596,2]
[395217672,1764549048662,-561.941987,0.00016596,2]
[395217673,1764549048672,-288.254646,0.00016596,2]
[395217674,1764549048681,-561.941987,0.00016596,2]
[395217675,1764549048692,-244.331539,0.00016596,2]
[395217676,1764549048702,-151.0,0.00016596,2]
[395217677,1764549048711,-151.0,0.00016596,2]
[395217678,1764549048721,-151.0,0.00016596,2]
[395217679,1764549048731,-151.0,0.00016596,2]
[395217680,1764549048741,-151.0,0.00016596,2]
[395217681,1764549048750,-151.0,0.00016596,2]
[395217682,1764549048761,-151.0,0.00016596,2]
[395217683,1764549048770,-151.0,0.00016596,2]
[395217684,1764549048780,-269.0,0.00016596,2]
[395217685,1764549048789,-220.999537,0.00016596,2]
[395217686,1764549048798,-151.0,0.00016596,2]
[395217687,1764549048807,-151.0,0.00016596,2]
[395217688,1764549048817,-190.538506,0.00016596,2]
[395217689,1764549048826,-151.0,0.00016596,2]
[395217690,1764549048856,-151.0,0.00016596,2]
[395217691,1764549048866,-575.853149,0.00016596,2]
[395217692,1764549048879,-575.853149,0.00016596,2]
[395217693,1764549048888,-575.853149,0.00016596,2]
[395217694,1764549048898,-575.853149,0.00016596,2]
[395217695,1764549048909,-155.004852,0.00016596,2]
[395217696,1764549048919,-155.004852,0.00016596,2]
[395217697,1764549048930,-155.004852,0.00016596,2]
[395217698,1764549048940,-155.004852,0.00016596,2]
[395217699,1764549048949,-151.0,0.00016596,2]
[395217700,1764549048959,-151.0,0.00016596,2]
[395217701,1764549048968,-155.032902,0.00016596,2]
[395217702,1764549048977,-151.0,0.00016596,2]
[395217703,1764549048986,-151.0,0.00016596,2]
[395217704,1764549048995,-151.0,0.00016596,2]
[395217705,1764549049004,-151.0,0.00016596,2]
[395217706,1764549049013,-151.0,0.00016596,2]
[395217707,1764549049023,-151.0,0.00016596,2]
[395217708,1764549049033,-151.0,0.00016596,2]
[395217709,1764549049042,-151.0,0.00016596,2]
[395217710,1764549049051,-151.0,0.00016596,2]
[395217711,1764549049059,-151.0,0.00016596,2]
[395217712,1764549049068,-151.0,0.00016596,2]
[395217713,1764549049078,-151.0,0.00016596,2]
[395217714,1764549049086,-151.0,0.00016596,2]
[395217715,1764549049096,-151.0,0.00016596,2]
[395217716,1764549049104,-151.0,0.00016596,2]
[395217717,1764549049116,-151.0,0.00016596,2]
[395217718,1764549049129,-151.0,0.00016596,2]
[395217719,1764549049138,-299.567974,0.00016596,2]
[395217720,1764549049148,-151.0,0.00016596,2]
[395217721,1764549049157,-528.213927,0.00016596,2]
[395217722,1764549049166,-299.567974,0.00016596,2]
[395217723,1764549049176,-299.567974,0.00016596,2]
[395217724,1764549049187,-528.213927,0.00016596,2]
[395217725,1764549049196,-151.0,0.00016596,2]
[395217726,1764549049206,-299.567974,0.00016596,2]
[395217727,1764549049215,-528.213927,0.00016596,2]
[395217728,1764549049225,-151.0,0.00016596,2]
[395217729,1764549049234,-528.213927,0.00016596,2]
[395217730,1764549049243,-151.0,0.00016596,2]
[395217731,1764549049251,-151.0,0.00016596,2]
[395217732,1764549049261,-206.181841,0.00016596,2]
[395217733,1764549049270,-206.181841,0.00016596,2]
[395217734,1764549049280,-151.0,0.00016596,2]
[395217735,1764549049289,-421.34453,0.00016596,2]
[395217736,1764549049298,-151.0,0.00016596,2]
[395217737,1764549049308,-421.34453,0.00016596,2]
[395217738,1764549049318,-151.0,0.00016596,2]
[395217739,1764549049327,-206.181841,0.00016596,2]
[395217740,1764549049336,-206.181841,0.00016596,2]
[395217741,1764549049345,-421.34453,0.00016596,2]
[395217742,1764549049354,-421.34453,0.00016596,2]
[395217743,1764549049364,-151.0,0.00016596,2]
[395217744,1764549049376,-151.0,0.00016596,2]
[395217745,1764549049385,-151.0,0.00016596,2]
[395217746,1764549049395,-151.0,0.00016596,2]
[395217747,1764549049404,-151.0,0.00016596,2]
[395217748,1764549049413,-143640.7414013,0.00016596,2]
[395217749,1764549049422,-151.0,0.00016596,2]
[395217750,1764549049431,-151.0,0.00016596,2]
[395217751,1764549049440,-398.266727,0.00016596,2]
[395217752,1764549049451,-398.266727,0.00016596,2]
[395217753,1764549049460,-156.651343,0.00016596,2]
[395217754,1764549049470,-165.424604,0.00016596,2]
[395217755,1764549049479,-165.424604,0.00016596,2]
[395217756,1764549049490,-398.266727,0.00016596,2]
[395217757,1764549049500,-398.266727,0.00016596,2]
[395217758,1764549049510,-165.424604,0.00016596,2]
[395217759,1764549049520,-165.424604,0.00016596,2]
[395217760,1764549049531,-398.266727,0.00016596,2]
[395217761,1764549049541,-398.266727,0.00016596,2]
[395217762,1764549049550,-165.424604,0.00016596,2]
[395217763,1764549049560,-398.266727,0.00016596,2]
[395217764,1764549049570,-398.266727,0.00016596,2]
[395217765,1764549049580,-178.278611,0.00016596,2]
[395217766,1764549049590,-178.278611,0.00016596,2]
[395217767,1764549049600,-151.0,0.00016596,2]
[395217768,1764549049613,-151.0,0.00016596,2]
[395217769,1764549049624,-178.278611,0.00016596,2]
[395217770,1764549049634,-151.0,0.00016596,2]
[395217771,1764549049643,-178.278611,0.00016596,2]
[395217772,1764549049652,-151.0,0.00016596,2]
[395217773,1764549049662,-230.086524,0.00016596,2]
[395217774,1764549049671,-151.0,0.00016596,2]
[395217775,1764549049681,-178.278611,0.00016596,2]
[395217776,1764549049690,-151.0,0.00016596,2]
[395217777,1764549049699,-178.278611,0.00016596,2]
[395217778,1764549049708,-151.0,0.00016596,2]
[395217779,1764549049718,-151.0,0.00016596,2]
[395217780,1764549049727,-151.0,0.00016596,2]
[395217781,1764549049736,-151.0,0.00016596,2]
[395217782,1764549049745,-165.424604,0.00016596,2]
[395217783,1764549049755,-178.278611,0.00016596,2]
[395217784,1764549049779,-241.177475,0.00016596,2]
[395217785,1764549049789,-2837.747796,0.00016596,2]
[395217786,1764549049798,-178.278611,0.00016596,2]
[395217787,1764549049807,-2837.747796,0.00016596,2]
[395217788,1764549049816,-165.424604,0.00016596,2]
[395217789,1764549049826,-165.424604,0.00016596,2]
[395217790,1764549049836,-2837.747796,0.00016596,2]
[395217791,1764549049846,-2837.747796,0.00016596,2]
[395217792,1764549049857,-2837.747796,0.00016596,2]
[395217793,1764549049867,-2837.747796,0.00016596,2]
[395217794,1764549049879,-166.010333,0.00016596,2]
[395217795,1764549049887,-4056.108297,0.00016596,2]
[395217796,1764549049896,-2837.747796,0.00016596,2]
[395217797,1764549049906,-2837.747796,0.00016596,2]
[395217798,1764549049915,-151.0,0.00016596,2]
[395217799,1764549049924,-151.0,0.00016596,2]
[395217800,1764549049934,-151.0,0.00016596,2]
[395217801,1764549049943,-151.0,0.00016596,2]
[395217802,1764549049952,-151.0,0.00016596,2]
[395217803,1764549049961,-151.0,0.00016596,2]
[395217804,1764549049970,-151.0,0.00016596,2]
[395217805,1764549049979,-151.0,0.00016596,2]
[395217806,1764549049988,-151.0,0.00016596,2]
[395217807,1764549049997,-151.0,0.00016596,2]
[395217808,1764549050006,-151.0,0.00016596,2]
[395217809,1764549050015,-151.0,0.00016596,2]
[395217810,1764549050024,-1998.22847857,0.000166,2]
[395217811,1764549050034,-195.12886218,0.00016609,2]
[395217812,1764549050043,-269.46949558,0.00016609,2]
[395217813,1764549050052,-150.0,0.00016609,2]
[395217814,1764549050061,-150.0,0.00016611,2]
[395217815,1764549050070,-150.0,0.00016612,2]
[395217816,1764549050079,-151.0,0.00016612,2]
[395217817,1764549050089,-160.606722,0.00016612,2]
[395217818,1764549050098,-151.0,0.00016612,2]
[395217819,1764549050108,-151.0,0.00016612,2]
[395217820,1764549050117,-151.0,0.00016612,2]
[395217821,1764549050128,-151.0,0.00016612,2]
[395217822,1764549050138,-151.0,0.00016612,2]
[395217823,1764549050149,-151.0,0.00016612,2]
[395217824,1764549050158,-151.0,0.00016612,2]
[395217825,1764549050169,-151.0,0.00016612,2]
[395217826,1764549050179,-151.0,0.00016612,2]
[395217827,1764549050189,-151.0,0.00016612,2]
[395217828,1764549050198,-151.0,0.00016612,2]
[395217829,1764549050208,-151.0,0.00016612,2]
[395217830,1764549050219,-151.0,0.00016612,2]
[395217831,1764549050229,-151.0,0.00016612,2]
[395217832,1764549050239,-151.0,0.00016612,2]
[395217833,1764549050250,-151.0,0.00016612,2]
[395217834,1764549050259,-151.667451,0.00016612,2]
[395217835,1764549050269,-224.4578,0.00016612,2]
[395217836,1764549050279,-151.0,0.00016612,2]
[395217837,1764549050287,-151.0,0.00016612,2]
[395217838,1764549050296,-206.237081,0.00016612,2]
[395217839,1764549050305,-151.0,0.00016612,2]
[395217840,1764549050314,-151.0,0.00016612,2]
[395217841,1764549050324,-206.237081,0.00016612,2]
[395217842,1764549050333,-151.0,0.00016612,2]
[395217843,1764549050342,-206.237081,0.00016612,2]
[395217844,1764549050351,-206.237081,0.00016612,2]
[395217845,1764549050360,-151.0,0.00016612,2]
[395217846,1764549050369,-151.0,0.00016612,2]
[395217847,1764549050381,-151.0,0.00016612,2]
[395217848,1764549050390,-151.0,0.00016612,2]
[395217849,1764549050400,-248.67852,0.00016612,2]
[395217850,1764549050409,-151.0,0.00016612,2]
[395217851,1764549050418,-248.67852,0.00016612,2]
[395217852,1764549050427,-248.67852,0.00016612,2]
[395217853,1764549050435,-248.67852,0.00016612,2]
[395217854,1764549050444,-151.0,0.00016612,2]
[395217855,1764549050454,-150.0,0.00016615,2]
[395217856,1764549050464,-1198.26556832,0.00016625,2]
[395217857,1764549050475,-195.12886218,0.00016626,2]
[395217858,1764549050485,-269.46949558,0.00016626,2]
[395217859,1764549050499,-150.0,0.00016628,2]
[395217860,1764549050510,-150.0,0.00016633,2]
[395217861,1764549050519,-150.0,0.00016635,2]
[395217862,1764549050529,-150.0,0.00016637,2]
[395217863,1764549050539,-150.0,0.00016638,2]
[395217864,1764549050547,-150.0,0.00016641,2]
[395217865,1764549050558,-195.12886218,0.00016643,2]
[395217866,1764549050567,-269.46949558,0.00016643,2]
[395217867,1764549050578,-150.0,0.00016647,2]
[395217868,1764549050587,-150.0,0.00016647,2]
[395217869,1764549050596,-150.0,0.00016647,2]
[395217870,1764549050605,-150.0,0.00016655,2]
[395217871,1764549050614,-1511.26134501,0.00016659,2]
[395217872,1764549050625,-150.0,0.0001666,2]
[395217873,1764549050635,-195.12886218,0.0001666,2]
[395217874,1764549050644,-269.46949558,0.0001666,2]
[395217875,1764549050654,-150.0,0.00016662,2]
[395217876,1764549050663,-700.74306003,0.00016663,2]
[395217877,1764549050672,-150.0,0.00016665,2]
[395217878,1764549050682,-150.0,0.00016668,2]
[395217879,1764549050691,-500.0,0.00016668,2]
[395217880,1764549050701,-251.0,0.00016671,2]
[395217881,1764549050711,-637.66314152,0.00016676,2]
[395217882,1764549050721,-195.12886218,0.00016677,2]
[395217883,1764549050730,-150.0,0.00016677,2]
[395217884,1764549050739,-269.46949558,0.00016677,2]
[395217885,1764549050766,-150.0,0.00016681,2]
[395217886,1764549050775,-150.0,0.00016684,2]
[395217887,1764549050785,-150.0,0.00016687,2]
[395217888,1764549050794,-150.0,0.00016687,2]
[395217889,1764549050803,-1160.17155988,0.00016688,2]
[395217890,1764549050812,-150.0,0.00016693,2]
[395217891,1764549050822,-150.0,0.00016694,2]
[395217892,1764549050951,-195.12886218,0.00016695,2]
[395217893,1764549050961,-269.46949558,0.00016695,2]
[395217894,1764549050973,-151.0,0.00016697,2]
[395217895,1764549050983,-151.0,0.00016697,2]
[395217896,1764549050993,-553.64373807,0.00016697,2]
[395217897,1764549051002,-151.0,0.00016697,2]
[395217898,1764549051011,-642.94,0.00016697,2]
[395217899,1764549051021,-201.93286099,0.00016697,2]
[395217900,1764549051030,-201.93286099,0.00016697,2]
[395217901,1764549051040,-3000.0,0.00016697,2]
[395217902,1764549051050,-150.0,0.000167,2]
[395217903,1764549051060,-1000.0,0.000167,2]
[395217904,1764549051072,-150.0,0.00016703,2]
[395217905,1764549051081,-150.0,0.00016712,2]
[395217906,1764549051092,-195.12886218,0.00016712,2]
[395217907,1764549051103,-269.46949558,0.00016712,2]
[395217908,1764549051113,-222.75,0.00016712,2]
[395217909,1764549051125,-151.0,0.00016713,2]
[395217910,1764549051134,-33341.18057242,0.00016715,2]
[395217911,1764549051143,-150.0,0.00016721,2]
[395217912,1764549051154,-150.0,0.00016722,2]
[395217913,1764549051163,-150.0,0.00016722,2]
[395217914,1764549051172,-150.0,0.00016725,2]
[395217915,1764549051182,-150.0,0.00016725,2]
[395217916,1764549051191,-150.0,0.00016725,2]
[395217917,1764549051200,-500.0,0.00016725,2]
[395217918,1764549051210,-166.66,0.00016725,2]
[395217919,1764549051220,-35002.51994264,0.00016726,2]
[395217920,1764549051229,-153.586438,0.00016726,2]
[395217921,1764549051241,-151.0,0.00016726,2]
[395217922,1764549051251,-151.0,0.00016726,2]
[395217923,1764549051262,-151.0,0.00016726,2]
[395217924,1764549051271,-232.882738,0.00016726,2]
[395217925,1764549051281,-232.882738,0.00016726,2]
[395217926,1764549051290,-232.882738,0.00016726,2]
[395217927,1764549051299,-232.882738,0.00016726,2]
[395217928,1764549051308,-151.0,0.00016726,2]
[395217929,1764549051317,-151.0,0.00016726,2]
[395217930,1764549051327,-153.742467,0.00016726,2]
[395217931,1764549051336,-151.0,0.00016726,2]
[395217932,1764549051346,-218.975841,0.00016726,2]
[395217933,1764549051355,-151.0,0.00016726,2]
[395217934,1764549051364,-151.0,0.00016726,2]
[395217935,1764549051373,-151.0,0.00016726,2]
[395217936,1764549051382,-153.777513,0.00016726,2]
[395217937,1764549051391,-151.0,0.00016726,2]
[395217938,1764549051401,-151.0,0.00016726,2]
[395217939,1764549051410,-151.0,0.00016726,2]
[395217940,1764549051420,-151.0,0.00016726,2]
[395217941,1764549051430,-151.0,0.00016726,2]
[395217942,1764549051440,-151.0,0.00016726,2]
[395217943,1764549051449,-151.0,0.00016726,2]
[395217944,1764549051459,-195.12886218,0.00016729,2]
[395217945,1764549051470,-269.46949558,0.00016729,2]
[395217946,1764549051479,-150.0,0.00016737,2]
[395217947,1764549051491,-408.39205809,0.00016738,2]
[395217948,1764549051501,-150.0,0.00016741,2]
[395217949,1764549051512,-150.0,0.00016744,2]
[395217950,1764549051522,-150.0,0.00016744,2]
[395217951,1764549051531,-150.69072968,0.00016744,2]
[395217952,1764549051540,-150.0,0.00016744,2]
[395217953,1764549051551,-150.0,0.00016744,2]
[395217954,1764549051560,-150.0,0.00016744,2]
[395217955,1764549051570,-500.0,0.00016744,2]
[395217956,1764549051579,-150.0,0.00016744,2]
[395217957,1764549051588,-150.0,0.00016744,2]
[395217958,1764549051597,-500.0,0.00016744,2]
[395217959,1764549051608,-150.0,0.00016744,2]
[395217960,1764549051617,-150.0,0.00016744,2]
[395217961,1764549051629,-150.0,0.00016744,2]
[395217962,1764549051639,-500.0,0.00016744,2]
[395217963,1764549051648,-150.0,0.00016744,2]
[395217964,1764549051657,-158.73149787,0.00016744,2]
[395217965,1764549051667,-500.0,0.00016744,2]
[395217966,1764549051676,-500.0,0.00016744,2]
[395217967,1764549051685,-150.0,0.00016744,2]
[395217968,1764549051694,-500.0,0.00016744,2]
[395217969,1764549051703,-500.0,0.00016744,2]
[395217970,1764549051713,-500.0,0.00016744,2]
[395217971,1764549051722,-150.0,0.00016744,2]
[395217972,1764549051731,-160.73087474,0.00016744,2]
[395217973,1764549051741,-500.0,0.00016744,2]
[395217974,1764549051750,-500.0,0.00016744,2]
[395217975,1764549051759,-150.0,0.00016744,2]
[395217976,1764549051769,-6146.17544968,0.00016745,2]
[395217977,1764549051778,-195.12886218,0.00016746,2]
[395217978,1764549051788,-269.46949558,0.00016746,2]
[395217979,1764549051797,-150.0,0.00016747,2]
[395217980,1764549051807,-150.0,0.00016752,2]
[395217981,1764549051816,-150.0,0.0001676,2]
[395217982,1764549051825,-150.0,0.00016761,2]
[395217983,1764549051834,-684.83,0.00016762,2]
[395217984,1764549051844,-195.12886218,0.00016763,2]
[395217985,1764549051855,-269.46949558,0.00016763,2]
[395217986,1764549051864,-150.0,0.00016766,2]
[395217987,1764549051875,-150.0,0.00016769,2]
[395217988,1764549051886,-150.0,0.00016774,2]
[395217989,1764549051895,-427.55165138,0.00016778,2]
[395217990,1764549051905,-150.0,0.00016779,2]
[395217991,1764549051914,-195.12886218,0.0001678,2]
[395217992,1764549051924,-269.46949558,0.0001678,2]
[395217993,1764549051934,-150.0,0.00016786,2]
[395217994,1764549051943,-150.0,0.00016786,2]
[395217995,1764549051952,-150.0,0.00016788,2]
[395217996,1764549051962,-151.0,0.00016788,2]
[395217997,1764549051971,-151.0,0.00016788,2]
[395217998,1764549051980,-151.0,0.00016788,2]
[395217999,1764549051989,-151.0,0.00016788,2]
[395218000,1764549051998,-210.94618,0.00016788,2]
[395218001,1764549052007,-151.0,0.00016788,2]
[395218002,1764549052016,-285.14787,0.00016788,2]
[395218003,1764549052026,-155.815619,0.00016788,2]
[395218004,1764549052034,-151.0,0.00016788,2]
[395218005,1764549052043,-151.0,0.00016788,2]
[395218006,1764549052053,-151.0,0.00016788,2]
[395218007,1764549052062,-151.0,0.00016788,2]
[395218008,1764549052071,-151.0,0.00016788,2]
[395218009,1764549052081,-151.0,0.00016788,2]
[395218010,1764549052090,-528.213927,0.00016788,2]
[395218011,1764549052099,-528.213927,0.00016788,2]
[395218012,1764549052108,-528.213927,0.00016788,2]
[395218013,1764549052118,-528.213927,0.00016788,2]
[395218014,1764549052128,-151.0,0.00016788,2]
[395218015,1764549052138,-151.0,0.00016788,2]
[395218016,1764549052148,-151.0,0.00016788,2]
[395218017,1764549052158,-151.0,0.00016788,2]
[395218018,1764549052167,-151.0,0.00016788,2]
[395218019,1764549052178,-150.0,0.0001679,2]
[395218020,1764549052188,-1793.624,0.00016792,2]
[395218021,1764549052198,-168.475,0.00016792,2]
[395218022,1764549052207,-1160.17155987,0.00016794,2]
[395218023,1764549052216,-195.12886218,0.00016798,2]
[395218024,1764549052227,-269.46949558,0.00016798,2]
[395218025,1764549052237,-150.0,0.00016798,2]
[395218026,1764549052246,-166.0,0.000168,2]
[395218027,1764549052255,-2483.39506937,0.000168,2]
[395218028,1764549052265,-150.0,0.00016801,2]
[395218029,1764549052275,-600.0,0.00016802,2]
[395218030,1764549052285,-150.0,0.0001681,2]
[395218031,1764549052295,-150.0,0.00016811,2]
[395218032,1764549052304,-150.0,0.00016811,2]
[395218033,1764549052314,-150.0,0.00016812,2]
[395218034,1764549052324,-195.12886218,0.00016815,2]
[395218035,1764549052333,-269.46949558,0.00016815,2]
[395218036,1764549052343,-150.0,0.00016816,2]
[395218037,1764549052352,-150.0,0.00016816,2]
[395218038,1764549052361,-150.0,0.00016827,2]